[Event "Arsen Yeghiazaryan Memorial 2022"]
[Site "Yerevan"]
[Date "2022.07.02"]
[Round "2.4"]
[White "Nazari, Arad"]
[Black "Piliposyan, Robert"]
[Result "1/2-1/2"]
[ECO "C68"]
[WhiteElo "2401"]
[BlackElo "2287"]
[Annotator "TA"]
[PlyCount "219"]
[EventDate "2022.06.30"]
[EventType "tourn"]
[EventCountry "ARM"]
[SourceTitle "playchess.com"]
[Source "ChessBase"]
[SourceQuality "1"]
[TimeControl "40/5400+30:1800+30"]

{[%evp 23,219,-36,-20,-26,-15,-33,2,-16,25,-66,-60,-64,-48,-64,-49,-86,-84,-104,-63,-142,-106,-165,-160,-157,-108,-163,-160,-174,-146,-146,-146,-150,-146,-224,-224,-224,-224,-224,-224,-224,-224,-224,0,-224,-224,-224,-171,-204,-145,-224,-224,-224,-224,-224,-224,-208,-208,-208,-146,-208,-205,-208,-185,-208,-208,-208,-208,-208,-208,-208,-208,-208,-208,-215,-215,-245,-245,-245,-245,-245,-245,-245,-245,-245,-245,-245,-245,-245,-245,-245,-245,-245,-245,-245,-245,-245,-245,-245,-245,-245,-245,-245,-245,-245,-245,-245,-245,-245,-245,-245,-245,-339,-333,-302,-289,-281,-291,-296,-296,-296,-204,-204,-204,-231,-224,-250,-204,-204,-204,-204,-204,-204,-204,-204,0,-204,-204,-204,-204,-204,-204,-204,-204,-204,-204,-204,-204,-204,-204,-204,-204,-204,-204,-204,-204,-197,0,-204,-204,-204,-204,-204,-197,-197,-197,-197,-197,-197,-197,-197,-197,-197,-197,-197,-197,-197,-197,-197,-197,-197,-197,-197,-197,-197,-197,-197,-197,-197,-197,-197,-197,-197,-197,-197,-197,-197,-197,-197]} 1. e4 {[%emt 0:00:10]} e5 {[%emt 0:00:06]} 2. Nf3 {[%emt 0:00:44]} Nc6 {[%emt 0:00:09]} 3. Bb5 {[%emt 0:00:05]} a6 {[%emt 0:00:11]} 4. Bxc6 {[%emt 0:00:10]} dxc6 {[%emt 0:00:06]} 5. O-O {[%emt 0:00:06]} Bg4 {[%emt 0:00:04]} 6. h3 {[%emt 0:00:09]} h5 {[%emt 0:00:08]} 7. d3 {[%emt 0:00:05]} Qf6 {[%emt 0:00:18]} 8. Be3 {[%emt 0:00:10]} Bxf3 {[%emt 0:01:29]} 9. Qxf3 {[%emt 0:00:08]} Qxf3 {[%emt 0:00:03]} 10. gxf3 {[%emt 0:00:10]} Ne7 {[%emt 0:06:12]} 11. Nd2 {[%emt 0:01:33]} Ng6 {[%emt 0:03:36]} 12. Rfb1 {[%emt 0:00:10]} Bd6 {[%emt 0:11:33]} 13. Kf1 {[%emt 0:00:25] C68: Ruy Lopez: Exchange Variation, sidelines.} c5 {[%emt 0:18:23] [#]} 14. a4 $146 {[%emt 0:00:08]} ({Predecessor:} 14. Nc4 Be7 15. a3 a5 16. b4 axb4 17. axb4 Rxa1 18. Rxa1 cxb4 19. Ra8+ Bd8 20. Na5 b6 {½-½ (40) Solak,D (2641)-Ding,L (2783) Khanty-Mansiysk 2017}) 14... Kd7 {[%emt 0:05:55]} 15. a5 {[%emt 0:00:09] The position is equal.} b5 {[%emt 0:04:34]} 16. Ke2 {[%emt 0:06:36]} (16. axb6 $1 $11 cxb6 17. c3) 16... Nf8 $15 {[%emt 0:01:58]} 17. c3 {[%emt 0:02:34]} Ne6 {[%emt 0:00:22]} 18. Rd1 {[%emt 0:07:00]} g6 {[%emt 0:05:29][%cal Bg7g6,Bg6g5][%mdl 32]} 19. Rac1 {[%emt 0:10:05]} f5 {[%emt 0:01:37][%cal Bf7f5,Bf5f4][%mdl 32]} 20. Nb1 {[%emt 0:12:41]} f4 {[%emt 0:06:34]} 21. Bd2 {[%emt 0:17:26]} ({White should play} 21. d4 $1 $15) 21... g5 {[%emt 0:03:10]} 22. Rg1 {[%emt 0:06:13]} (22. Na3 $17) 22... Ke7 {[%emt 0:03:35]} 23. Rcd1 {[%emt 0:06:38]} Rhd8 {[%emt 0:04:01]} (23... Rad8 $142 24. Na3 c4) 24. Bc1 {[%emt 0:01:32]} (24. h4 $17) 24... Kf7 $19 {[%emt 0:02:00]} 25. Nd2 {[%emt 0:01:40]} Be7 {[%emt 0:00:47]} 26. b3 {[%emt 0:02:10]} Rd7 {[%emt 0:04:55]} 27. Bb2 {[%emt 0:00:19]} c6 {[%emt 0:01:31]} 28. c4 {[%emt 0:01:40]} (28. Rge1 $17 {was called for.}) 28... Bf6 {[%emt 0:05:22]} 29. Nb1 {[%emt 0:03:03]} b4 {[%emt 0:02:31] Prevents Na3.} 30. Nd2 {[%emt 0:01:57]} Rad8 {[%emt 0:01:37]} 31. Nf1 {[%emt 0:00:20]} Ng7 {[%emt 0:01:47]} 32. Nh2 {[%emt 0:00:42]} Ne6 $2 {[%emt 0:02:51]} (32... Ke7 $19 {Strongly threatening ...Kf7.} 33. Rgf1 Ne6) 33. Rd2 $2 {[%emt 0:01:07]} (33. Nf1 $11) 33... Rd6 {[%emt 0:00:24]} 34. Rdd1 {[%emt 0:02:15]} Re8 {[%emt 0:00:37]} 35. Rg2 {[%emt 0:03:37]} Rd7 {[%emt 0:02:01]} 36. Rdg1 {[%emt 0:01:11]} (36. Kd2 $17) 36... Red8 {[%emt 0:01:09]} 37. Rd1 {[%emt 0:00:04]} Bh8 {[%emt 0:01:12]} 38. Rgg1 {[%emt 0:00:31]} Kf6 {[%emt 0:00:34]} 39. Nf1 {[%emt 0:01:12]} Bg7 {[%emt 0:00:36]} 40. Rd2 {[%emt 0:00:00]} Bf8 {[%emt 0:00:00]} 41. Nh2 {[%emt 0:04:23]} (41. h4 $17 {was necessary.}) 41... Rd6 {[%emt 0:07:36]} 42. Nf1 {[%emt 0:04:16]} Bh6 {[%emt 0:02:40]} 43. Nh2 {[%emt 0:00:16]} R8d7 {[%emt 0:00:34]} 44. Ra1 {[%emt 0:03:05]} Nd8 {[%emt 0:00:22]} 45. Rdd1 {[%emt 0:02:51]} Nb7 {[%emt 0:00:14]} 46. Rd2 {[%emt 0:00:11]} Bf8 {[%emt 0:00:21][%cal Bh6f8,Bf8e7,Be7d8,Bd8c7][%mdl 32]} 47. Rdd1 {[%emt 0:01:05]} Be7 {[%emt 0:00:27]} 48. Ra2 {[%emt 0:02:00]} Bd8 {[%emt 0:00:11]} 49. Ba1 {[%emt 0:00:09]} Nxa5 {[%emt 0:01:31]} 50. Rb2 {[%emt 0:00:07]} Bc7 {[%emt 0:01:46]} 51. Rdd2 {[%emt 0:00:12]} Rd8 {[%emt 0:00:23]} 52. Rd1 {[%emt 0:00:09]} R6d7 {[%emt 0:02:05]} 53. Rdd2 {[%emt 0:00:19]} Nb7 {[%emt 0:00:31]} 54. Ra2 {[%emt 0:00:10]} a5 {[%emt 0:00:29]} ({Wrong is} 54... Na5 $2 55. Rab2) 55. Ra4 {[%emt 0:00:13]} Nd6 {[%emt 0:00:43]} 56. Rd1 {[%emt 0:02:55]} Nc8 {[%emt 0:01:20]} 57. Ra2 {[%emt 0:00:11]} Bb6 {[%emt 0:03:10]} 58. Bb2 {[%emt 0:00:24]} Ke6 {[%emt 0:00:41]} 59. Ba1 {[%emt 0:01:05]} Ne7 {[%emt 0:04:39][%cal Bc8e7,Be7g8,Bg8f6,Bf6d7,Bd7b6,Bb6a4,Ba4c3][%mdl 32]} 60. Bb2 {[%emt 0:00:46]} Bc7 {[%emt 0:00:36]} 61. Raa1 {[%emt 0:00:15]} Ng8 {[%emt 0:00:26]} 62. Rd2 {[%emt 0:00:31]} Nf6 {[%emt 0:00:20]} 63. Rg1 {[%emt 0:00:55]} Rg7 {[%emt 0:00:59]} 64. Rdd1 {[%emt 0:00:50]} Ra8 {[%emt 0:02:05]} 65. Ra1 {[%emt 0:00:08]} Bd8 {[%emt 0:01:41]} 66. Rg2 {[%emt 0:00:53]} Nd7 {[%emt 0:02:08]} 67. Kd2 {[%emt 0:01:26]} Nb6 {[%emt 0:00:29]} 68. Kc2 {[%emt 0:00:27]} a4 {[%emt 0:01:24]} 69. bxa4 {[%emt 0:00:08]} Nxa4 {[%emt 0:02:22][%cal Ob4b3] [#] Threatens to win with ...b3+!} ({Not} 69... Rxa4 70. Rgg1 $17) 70. Kb3 {[%emt 0:00:07]} Rga7 {[%emt 0:00:22]} 71. Rgg1 {[%emt 0:02:02]} Nc3 {[%emt 0:01:23]} 72. Rxa7 {[%emt 0:01:41]} Rxa7 {[%emt 0:00:03]} 73. Re1 {[%emt 0:02:38] Prevents Ne2.} Rd7 {[%emt 0:00:25]} 74. Kc2 {[%emt 0:00:03]} Na4 {[%emt 0:01:32]} 75. Ba1 {[%emt 0:01:04]} Nb6 {[%emt 0:01:09][%cal Ob4b3]} 76. Rd1 {[%emt 0:00:26]} Ra7 {[%emt 0:00:58] [#] White must now prevent ...Ra3.} 77. Bb2 {[%emt 0:00:30] Against Ra3} Ra2 {[%emt 0:00:56]} 78. Kb3 {[%emt 0:00:15]} Ra7 $2 {[%emt 0:00:19]} (78... Ra4 $19 {...Be7 is the strong threat.} 79. Nf1 Ra7) 79. Nf1 $2 {[%emt 0:01:02]} (79. Kc2 $1 $11 {and White stays safe.}) 79... Nd7 {[%emt 0:00:24]} 80. Ra1 {[%emt 0:05:53]} Ba5 {[%emt 0:00:26]} 81. Nd2 {[%emt 0:00:22]} Nf6 {[%emt 0:00:22]} 82. Kc2 {[%emt 0:01:16]} Bb6 {[%emt 0:00:55]} 83. Rxa7 {[%emt 0:00:59]} Bxa7 {[%emt 0:00:03][%mdl 4096] Endgame KBN-KBN} 84. Kd1 {[%emt 0:00:21]} Nd7 {[%emt 0:00:45]} 85. Nb3 {[%emt 0:00:38]} Kd6 {[%emt 0:00:26]} 86. Bc1 {[%emt 0:00:10]} Nf8 {[%emt 0:00:29]} 87. Ke2 {[%emt 0:00:55]} Ne6 {[%emt 0:00:12]} 88. Bb2 {[%emt 0:00:09]} Nc7 {[%emt 0:00:38]} 89. Na5 {[%emt 0:01:16][%cal Ob2e5]} Ne6 $2 {[%emt 0:00:59]} (89... Bb6 $19 90. Nb3 Ne6) 90. Nb7+ $2 {[%emt 0:00:39]} (90. Nb3 $11 {and White is okay.}) 90... Kc7 {[%emt 0:00:04] Black is clearly better.} 91. Na5 {[%emt 0:00:07]} Kb6 {[%emt 0:00:06]} 92. Nb3 {[%emt 0:00:35]} Bb8 {[%emt 0:00:03]} 93. Ba1 {[%emt 0:00:46]} Nd8 {[%emt 0:00:13]} 94. Kd2 {[%emt 0:00:09]} Bd6 {[%emt 0:00:19]} 95. Bb2 {[%emt 0:00:14]} Ne6 {[%emt 0:00:26]} 96. Ke2 {[%emt 0:00:16]} Bc7 {[%emt 0:00:27]} 97. Ba1 {[%emt 0:00:11]} Kb7 {[%emt 0:00:29]} 98. Bb2 {[%emt 0:00:20]} Kc8 {[%emt 0:00:26]} 99. Nd2 {[%emt 0:00:11]} Nf8 {[%emt 0:00:26]} 100. Nb3 {[%emt 0:00:14]} Nd7 {[%emt 0:00:33]} 101. Ba1 {[%emt 0:00:30]} Kd8 {[%emt 0:01:42]} 102. Bb2 {[%emt 0:00:08]} Ke7 {[%emt 0:00:02]} 103. Bc1 {[%emt 0:01:13]} Kd6 {[%emt 0:00:16]} 104. Bd2 {[%emt 0:01:50]} Nf8 {[%emt 0:01:16]} 105. Bc1 {[%emt 0:00:09]} Ne6 {[%emt 0:00:42]} 106. Bb2 {[%emt 0:00:05]} Nd8 {[%emt 0:00:18]} 107. Nd2 {[%emt 0:01:15]} Nb7 {[%emt 0:00:17]} 108. Kd1 {[%emt 0:03:48]} Na5 {[%emt 0:00:09]} 109. Ke2 {[%emt 0:01:52]} Ke6 {[%emt 0:00:17]} 110. Kf1 {[%emt 0:00:16] Weighted Error Value: White=0.26 (precise) /Black=0.13 (very precise)} 1/2-1/2

[Event "Arsen Yeghiazaryan Memorial 2022"]
[Site "Yerevan"]
[Date "2022.07.02"]
[Round "2.5"]
[White "Morchiashvili, Bachana"]
[Black "Hayrapetyan, Hovik"]
[Result "0-1"]
[ECO "D35"]
[WhiteElo "2305"]
[BlackElo "2481"]
[Annotator "TA"]
[PlyCount "96"]
[EventDate "2022.06.30"]
[EventType "tourn"]
[EventCountry "ARM"]
[SourceTitle "playchess.com"]
[Source "ChessBase"]
[SourceQuality "1"]
[TimeControl "40/5400+30:1800+30"]

{[%evp 21,96,0,0,0,0,-29,-25,-25,-24,-25,-30,-39,-32,-57,-17,-48,-29,-46,-26,-65,-38,-56,-60,-60,-43,-79,-82,-85,-77,-83,-78,-77,-71,-85,-75,-272,-287,-269,-256,-272,-285,-317,-315,-302,-279,-254,-194,-180,-181,-193,-123,-141,0,0,0,0,0,0,0,0,0,-70,-68,-84,0,0,0,0,0,-202,-37,-29957,-29953,-29980,-29981,-29980,-29981]} 1. d4 {[%emt 0:00:02]} Nf6 {[%emt 0:00:06]} 2. c4 {[%emt 0:00:04]} e6 {[%emt 0:00:07]} 3. Nf3 {[%emt 0:00:04]} d5 {[%emt 0:00:07]} 4. Nc3 {[%emt 0:00:11]} Bb4 {[%emt 0:00:57]} 5. cxd5 {[%emt 0:00:34]} exd5 {[%emt 0:00:06]} 6. Bg5 {[%emt 0:00:04]} h6 {[%emt 0:00:16]} 7. Bh4 {[%emt 0:00:18]} O-O {[%emt 0:00:17]} 8. e3 {[%emt 0:00:32]} Bf5 {[%emt 0:00:29]} 9. Bd3 {[%emt 0:12:46]} Bxd3 {[%emt 0:00:43]} 10. Qxd3 {[%emt 0:00:14]} Nbd7 {[%emt 0:02:34]} 11. O-O {[%emt 0:02:32]} c6 {[%emt 0:00:47]} 12. Ne5 {[%emt 0:04:19] D35: Queen's Gambit Declined: Exchange Variation.} Qe8 {[%emt 0:17:06]} 13. Bxf6 {[%emt 0:08:53]} Nxf6 {[%emt 0:00:17] [#]} 14. Qc2 $146 {[%emt 0:04:23] Black has an edge.} ({Predecessor:} 14. Rab1 Bd6 15. Nf3 Ne4 16. b4 a6 17. a4 f5 18. Ne2 g5 19. b5 axb5 20. axb5 {½-½ (41) Devaev,A (2325)-Suvorov,A (2363) Chess.com INT 2021}) 14... Bd6 {[%emt 0:03:05]} 15. Nd3 {[%emt 0:00:46]} Qe7 {[%emt 0:01:12]} 16. g3 {[%emt 0:01:41]} h5 {[%emt 0:00:28]} 17. Rfe1 {[%emt 0:03:28]} Rae8 {[%emt 0:02:04][%cal Oh5h4]} (17... h4 $5) 18. Qe2 {[%emt 0:02:12]} g6 {[%emt 0:01:51]} 19. Rab1 {[%emt 0:01:33]} a5 {[%emt 0:02:18]} 20. a3 {[%emt 0:01:18]} Qe6 {[%emt 0:05:25][%cal Oh5h4]} (20... h4 {feels hotter.} 21. g4 Ne4 22. Rbc1 h3) 21. b4 {[%emt 0:03:01]} axb4 {[%emt 0:00:25]} 22. axb4 {[%emt 0:00:02]} b5 {[%emt 0:00:36][%cal Oh5h4]} 23. Rbc1 {[%emt 0:08:09]} h4 $1 {[%emt 0:02:05]} 24. Nb1 {[%emt 0:08:51]} Qd7 {[%emt 0:06:40]} 25. Nd2 {[%emt 0:00:58]} Kg7 {[%emt 0:08:17]} 26. Nf3 {[%emt 0:07:31]} hxg3 {[%emt 0:02:15]} 27. hxg3 {[%emt 0:00:38] [#]} Ng4 {[%emt 0:05:53] Prevents Nfe5.} 28. Nh2 $2 {[%emt 0:08:33]} (28. Nc5 $17 Bxc5 29. Rxc5) 28... Nxh2 $19 {[%emt 0:08:20]} 29. Kxh2 {[%emt 0:00:02]} Rh8+ {[%emt 0:00:06]} 30. Kg1 {[%emt 0:03:31][%cal Bh2g1,Bg1f1,Bf1e2,Be2d2,Bd2c3,Bc3b3,Bb3b2][%mdl 32]} g5 {[%emt 0:06:08][%cal Bg6g5,Bg5g4][%mdl 32]} (30... Qh3 31. Qf3 $17) 31. Qf3 {[%emt 0:03:40] Against Qf5} g4 {[%emt 0:01:45]} 32. Qg2 {[%emt 0:00:02]} Rh6 {[%emt 0:00:22] And now ...Qf5 would win.} 33. Kf1 {[%emt 0:13:56]} Reh8 {[%emt 0:00:12]} 34. Ke2 {[%emt 0:00:03]} Rh2 {[%emt 0:00:06]} 35. Qg1 {[%emt 0:00:11]} Qf5 {[%emt 0:00:15]} (35... R8h3 $19 {Hoping for ...Qe7.} 36. Kd2 Bxg3) 36. Kd2 $17 {[%emt 0:01:11] [#]} Qf3 {[%emt 0:13:30] 0x0.00222d46e56cdp-1022s more active pieces.} ({Better is} 36... Qe4 $1 $17 {aiming for ...Rg2.} 37. Kc3 (37. Rxc6 Bxb4+ 38. Nxb4 Rh1 $17) 37... R8h7) 37. Kc3 $1 $11 {[%emt 0:00:09]} (37. Rxc6 $2 Bxg3 38. Re2 Ra8 $19) 37... Rg2 {[%emt 0:01:04]} 38. Qf1 {[%emt 0:00:02]} Rhh2 {[%emt 0:00:54][%cal Rg2f2]} 39. Kb3 $1 {[%emt 0:01:03]} Rxf2 {[%emt 0:02:30]} 40. Nxf2 {[%emt 0:00:00]} Rxf2 {[%emt 0:00:00]} 41. Qd3 {[%emt 0:02:56]} (41. Qh1 $11) 41... Bxg3 $15 {[%emt 0:05:33]} 42. Rxc6 {[%emt 0:19:32]} Rb2+ {[%emt 0:06:55] Really sharp!} 43. Kxb2 $11 {[%emt 0:00:05]} Bxe1 {[%emt 0:00:03]} 44. Qxb5 {[%emt 0:04:38] KQR-KQB} g3 {[%emt 0:04:11] ( -> ...g2)} 45. Rc8 $2 {[%emt 0:02:23]} (45. Qb8 $1 $11 Qxe3 46. Qd6) 45... Qf2+ $2 {[%emt 0:02:13]} ({Not} 45... Qxe3 46. Qxd5 Bxb4 47. Qd8 Qa3+ 48. Kc2 Qa4+ 49. Kd3 Qb3+ 50. Ke4 Qe6+ 51. Kf3 Qf5+ 52. Kg2 (52. Kxg3 {is a self mate.} Be1+ 53. Kh2 Qf2+ 54. Kh1 Qf3+ 55. Kg1 Bf2+ 56. Kf1 Bg3+ 57. Kg1 Qf2+ 58. Kh1 Qh2#) 52... Qf2+ 53. Kh3 Qf5+ 54. Kg2 (54. Kxg3 {leads to mate.} Be1+ 55. Kh2 Qf2+ 56. Kh1 Qf3+ 57. Kh2 Bg3+ 58. Kh3 Bf2+ 59. Kh2 Qg3+ 60. Kh1 Qh3#) 54... Qf2+ 55. Kh3 Qf5+ 56. Kg2 $11 (56. Kxg3 Be1+ 57. Kh2 Qf2+ 58. Kh1 Qf3+ 59. Kh2 Bg3+ 60. Kh3 Bf2+ 61. Kh2 Qg3+ 62. Kh1 Qh3#)) (45... g2 $19 46. Qb8 Qf2+ 47. Kb3 Qxe3+ 48. Ka4 g1=Q 49. Rg8+ Kh7 50. Rh8+ Kg6 51. Rg8+ Kh7 52. Rh8+ Kg6 53. Rg8+ Kh7) 46. Kb1 $2 {[%emt 0:02:52][%mdl 8192]} (46. Rc2 $15 Qxc2+ 47. Kxc2) 46... Qf5+ {[%emt 0:00:08] Black mates.} 47. Rc2 {[%emt 0:02:36]} g2 {[%emt 0:00:17]} 48. e4 {[%emt 0:00:29]} Qxe4 {[%emt 0:00:15] Weighted Error Value: White=0.41/Black=0.22 (precise)} 0-1

[Event "Arsen Yeghiazaryan Memorial 2022"]
[Site "Yerevan"]
[Date "2022.07.03"]
[Round "3.1"]
[White "Piliposyan, Robert"]
[Black "Morchiashvili, Bachana"]
[Result "1-0"]
[ECO "A58"]
[WhiteElo "2287"]
[BlackElo "2305"]
[Annotator "TA"]
[PlyCount "105"]
[EventDate "2022.06.30"]
[EventType "tourn"]
[EventCountry "ARM"]
[SourceTitle "playchess.com"]
[Source "ChessBase"]
[SourceQuality "1"]
[TimeControl "40/5400+30:1800+30"]

{[%evp 9,105,25,48,56,51,52,52,44,52,53,51,50,56,56,53,45,51,38,96,98,133,98,116,120,125,114,198,203,210,200,195,200,181,191,205,187,186,184,282,222,223,208,291,270,298,296,289,274,355,354,338,342,380,392,388,371,492,488,510,506,492,505,500,483,684,680,658,660,648,616,526,478,491,495,2102,2075,1031,639,687,238,229,229,225,229,29965,29965,29965,29966,29966,29967,29968,29969,29976,29977,29978,29979,29978,29978]} 1. d4 {[%emt 0:00:03]} Nf6 {[%emt 0:00:03]} 2. c4 {[%emt 0:00:04][%cal Bc2c4,Bc4b5][%mdl 32]} c5 {[%emt 0:02:48]} 3. d5 {[%emt 0:00:13]} b5 {[%emt 0:00:07]} 4. cxb5 {[%emt 0:00:04]} a6 {[%emt 0:00:08]} 5. bxa6 {[%emt 0:00:05]} g6 {[%emt 0:00:14]} 6. Nc3 {[%emt 0:00:04] A58: Benko/Volga Gambit: Lines with 5 bxa6.} Bg7 {[%emt 0:00:10]} 7. e4 {[%emt 0:00:11]} O-O {[%emt 0:00:30]} 8. a7 {[%emt 0:01:24] White is slightly better.} Rxa7 {[%emt 0:00:19]} 9. Nf3 {[%emt 0:00:19]} e6 {[%emt 0:01:54]} 10. Be2 {[%emt 0:03:22]} exd5 {[%emt 0:00:26]} 11. exd5 {[%emt 0:01:59]} Ba6 {[%emt 0:02:49]} 12. O-O {[%emt 0:06:25]} Bxe2 {[%emt 0:00:28]} 13. Qxe2 {[%emt 0:01:29] [#]} Na6 $146 {[%emt 0:00:55]} (13... d6 $14) ({Predecessor:} 13... d6 14. Bf4 Re8 15. Qb5 Rae7 16. Nd2 Nh5 17. Bg5 f6 18. Be3 g5 19. Nc4 h6 {1-0 (51) Grinev,V (2441)-Zia,T (2071) Chess.com INT 2020}) 14. d6 $1 $16 {[%emt 0:23:34] Black is now going downhill.} Qa5 {[%emt 0:11:57]} 15. Bd2 {[%emt 0:13:54] Hoping for Nb5.} Qb6 {[%emt 0:16:11]} 16. Nb5 {[%emt 0:03:26]} Raa8 {[%emt 0:07:18]} 17. a4 {[%emt 0:02:29] 0x0.001765200b8fdp-1022s more active pieces. The black rooks are badly placed.} Rfc8 {[%emt 0:03:57]} (17... Qb7 $16) 18. Qc4 $18 {[%emt 0:02:11]} Qc6 {[%emt 0:03:14]} 19. Ne5 {[%emt 0:05:05][%csl LRc6,LRf7]} Qd5 {[%emt 0:00:25]} 20. Bc3 {[%emt 0:00:49]} Qxc4 {[%emt 0:02:44]} 21. Nxc4 {[%emt 0:00:18]} Rab8 {[%emt 0:00:41] Prevents Nb6.} 22. Rfe1 $36 {[%emt 0:06:48][%cal Bf1e1,Be1e3,Be3e7][%mdl 2080] White is in control.} Nb4 {[%emt 0:02:53]} 23. Rad1 {[%emt 0:09:27]} Nbd5 {[%emt 0:10:11]} (23... Nfd5 $142 24. h3 Kf8) 24. Bxf6 {[%emt 0:00:52]} Nxf6 {[%emt 0:00:04]} 25. Re3 {[%emt 0:02:28]} Ng4 {[%emt 0:04:20]} 26. Re7 {[%emt 0:01:44]} Rd8 {[%emt 0:08:22]} 27. h3 {[%emt 0:03:19][%cal Bh2h3,Bh3h4][%mdl 32]} Nh6 {[%emt 0:01:29]} 28. g4 {[%emt 0:00:28][%cal Bg2g4,Bg4g5][%mdl 32] Prevents Nf5.} f5 {[%emt 0:02:32]} 29. g5 {[%emt 0:01:23]} Nf7 {[%emt 0:00:02]} 30. f4 {[%emt 0:01:04]} Kf8 {[%emt 0:06:48]} 31. Rde1 {[%emt 0:01:15]} h6 {[%emt 0:01:17]} 32. h4 {[%emt 0:00:39]} hxg5 {[%emt 0:00:02]} 33. hxg5 {[%emt 0:00:10]} Rb7 {[%emt 0:00:18]} 34. Kg2 {[%emt 0:00:56]} Rbb8 {[%emt 0:03:38]} 35. Ne5 {[%emt 0:04:50]} Bxe5 {[%emt 0:02:31]} 36. fxe5 {[%emt 0:00:07]} Nxg5 {[%emt 0:00:11]} (36... f4 $142 37. Rf1 Re8 38. Rxd7 Nxe5) 37. Rh1 {[%emt 0:00:32][%cal Rh1h8]} Kg8 {[%emt 0:01:02] Against Rh8+} 38. Rh6 {[%emt 0:00:14]} Ne6 {[%emt 0:00:48]} 39. Rxg6+ {[%emt 0:00:28]} Kh8 {[%emt 0:00:18] Threatens to win with ...Nf4+.} 40. Rh6+ {[%emt 0:00:00]} Kg8 {[%emt 0:00:00]} 41. b3 {[%emt 0:10:49] Nc7 is the strong threat.} Nd4 {[%emt 0:13:01]} (41... Nf4+ $142 42. Kg3 Ne6) 42. Nc7 {[%emt 0:03:11] Intending Nd5 and mate.} Nc6 {[%emt 0:04:05] [#]} 43. e6 $1 {[%emt 0:06:56] And now Reh7 would win.} dxe6 {[%emt 0:00:05]} (43... Nxe7 44. dxe7) 44. Nxe6 $2 {[%emt 0:00:58]} Nxe7 {[%emt 0:00:40]} 45. Nxd8 {[%emt 0:00:08]} ({And not} 45. dxe7 Rd2+ 46. Kg3 Rxb3+ 47. Kf4 Kf7 48. Kxf5 (48. Rh7+ $2 Kf6 $19) 48... Kxe7 49. Rh7+ Ke8 $15) 45... Rxd8 {[%emt 0:00:49]} 46. dxe7 {[%emt 0:00:13][%mdl 4096] Endgame KR-KR} Rd2+ {[%emt 0:04:08]} (46... Re8 $18 47. Rc6 Kf7 48. Rxc5 Rg8+ 49. Kf2 Kxe7 50. Rxf5 Rb8) 47. Kf1 {[%emt 0:01:05] White mates.} Kf7 {[%emt 0:01:08] [#]} 48. Re6 $3 {[%emt 0:00:11][%mdl 512]} Ke8 {[%emt 0:00:07]} 49. a5 $1 {[%emt 0:00:14][%cal Ba4a5,Ba5a6,Ba6a7][%mdl 32]} Ra2 {[%emt 0:02:31]} 50. a6 {[%emt 0:00:09]} f4 {[%emt 0:02:27]} 51. Rh6 {[%emt 0:01:21]} Kxe7 {[%emt 0:08:24] [#]} 52. a7 $1 {[%emt 0:00:10]} Kd7 {[%emt 0:00:16] [#]} 53. Rh8 $1 {[%emt 0:00:10] Weighted Error Value: White=0.20 (precise) /Black=0.38} 1-0